[Event "Early-Titled-Tuesday-Blitz-April-16-2024"]
[Site "Chess.com"]
[Date "2024.04.16"]
[Round "9"]
[White "ilqar_74"]
[Black "ragnaroek66"]
[Result "0-1"]
[WhiteElo "2751"]
[BlackElo "2536"]
[TimeControl "180+1"]
[EndTime "9:49:26 PDT"]
[Termination "ragnaroek66 won by resignation"]

1. e4 {[%clk 0:03:00.9]} 1... c6 {[%clk 0:02:59.9]} 2. Nc3 {[%clk 0:02:59.8]}
2... d5 {[%clk 0:03:00.8]} 3. Nf3 {[%clk 0:03:00.4]} 3... Bg4 {[%clk 0:03:01]}
4. h3 {[%clk 0:03:00.1]} 4... Bxf3 {[%clk 0:03:01.5]} 5. Qxf3 {[%clk 0:03:01]}
5... e6 {[%clk 0:03:02.1]} 6. d3 {[%clk 0:03:00.9]} 6... Nd7 {[%clk 0:03:01.8]}
7. g3 {[%clk 0:03:00.9]} 7... Ngf6 {[%clk 0:02:55.6]} 8. Bg2 {[%clk 0:03:00.5]}
8... Bb4 {[%clk 0:02:47.9]} 9. O-O {[%clk 0:02:57.3]} 9... O-O {[%clk
0:02:41.9]} 10. Qe2 {[%clk 0:02:54.2]} 10... Qc7 {[%clk 0:02:32.2]} 11. a3
{[%clk 0:02:52.5]} 11... Bc5 {[%clk 0:02:29.4]} 12. Kh2 {[%clk 0:02:49.9]} 12...
Bd4 {[%clk 0:02:19.3]} 13. Nd1 {[%clk 0:02:47.7]} 13... e5 {[%clk 0:02:11.3]}
14. c3 {[%clk 0:02:43.2]} 14... Bc5 {[%clk 0:02:10.9]} 15. Ne3 {[%clk
0:02:43.7]} 15... Nb6 {[%clk 0:01:59.8]} 16. b4 {[%clk 0:02:41.2]} 16... Bd6
{[%clk 0:01:52.8]} 17. c4 {[%clk 0:02:40.2]} 17... dxc4 {[%clk 0:01:41.9]} 18.
dxc4 {[%clk 0:02:39.3]} 18... Be7 {[%clk 0:01:35.6]} 19. c5 {[%clk 0:02:38.6]}
19... Nbd7 {[%clk 0:01:26.3]} 20. Nf5 {[%clk 0:02:38.6]} 20... Rfe8 {[%clk
0:01:26.7]} 21. Be3 {[%clk 0:02:38.2]} 21... b6 {[%clk 0:01:26]} 22. Rfc1 {[%clk
0:02:30.1]} 22... Bf8 {[%clk 0:01:16]} 23. cxb6 {[%clk 0:02:22.2]} 23... axb6
{[%clk 0:01:16.9]} 24. Qc4 {[%clk 0:02:21.4]} 24... Rec8 {[%clk 0:01:10.8]} 25.
a4 {[%clk 0:02:09.1]} 25... Ne8 {[%clk 0:01:02.6]} 26. b5 {[%clk 0:02:06.4]}
26... Nc5 {[%clk 0:00:57.6]} 27. g4 {[%clk 0:01:34.2]} 27... cxb5 {[%clk
0:00:52.6]} 28. axb5 {[%clk 0:01:35.1]} 28... Nd6 {[%clk 0:00:46]} 29. Qd5
{[%clk 0:01:26.1]} 29... Rxa1 {[%clk 0:00:41.6]} 30. Rxa1 {[%clk 0:01:26]} 30...
Nxb5 {[%clk 0:00:41.9]} 31. Rc1 {[%clk 0:01:18.1]} 31... Rd8 {[%clk 0:00:40.7]}
32. Qc4 {[%clk 0:01:15.4]} 32... Nd4 {[%clk 0:00:40.5]} 33. Ng3 {[%clk
0:01:08.4]} 33... b5 {[%clk 0:00:37.8]} 34. Qf1 {[%clk 0:01:04.9]} 34... Qb6
{[%clk 0:00:35.1]} 35. Rb1 {[%clk 0:01:00.5]} 35... b4 {[%clk 0:00:33.8]} 36.
Qc4 {[%clk 0:01:00.2]} 36... b3 {[%clk 0:00:30.1]} 37. Nf5 {[%clk 0:00:58]}
37... g6 {[%clk 0:00:19.6]} 38. Nh6+ {[%clk 0:00:49]} 38... Bxh6 {[%clk
0:00:18.8]} 39. Bxh6 {[%clk 0:00:49.9]} 39... b2 {[%clk 0:00:17.9]} 40. Be3
{[%clk 0:00:48.2]} 40... Nce6 {[%clk 0:00:17]} 41. Qc3 {[%clk 0:00:42.3]} 41...
Rb8 {[%clk 0:00:16.8]} 42. Bf1 {[%clk 0:00:37.6]} 42... Qb4 {[%clk 0:00:15.3]}
43. Qd3 {[%clk 0:00:35.5]} 43... Nc5 {[%clk 0:00:14.7]} 44. Qd1 {[%clk 0:00:32]}
44... Nxe4 {[%clk 0:00:14.6]} 45. Qd3 {[%clk 0:00:25.4]} 45... Nc3 {[%clk
0:00:14.6]} 46. Bd2 {[%clk 0:00:24]} 46... Rc8 {[%clk 0:00:12.6]} 47. Bg2 {[%clk
0:00:20.6]} 47... Qb3 {[%clk 0:00:12.7]} 48. Bxc3 {[%clk 0:00:18.8]} 48... Rxc3
{[%clk 0:00:13]} 49. Qe4 {[%clk 0:00:19.4]} 49... Rc1 {[%clk 0:00:13.1]} 50. f4
{[%clk 0:00:16.5]} 50... Rxb1 {[%clk 0:00:12.8]} 51. Qxb1 {[%clk 0:00:14.9]}
51... Qc2 {[%clk 0:00:11.3]} 0-1

[Event "Early-Titled-Tuesday-Blitz-April-16-2024"]
[Site "Chess.com"]
[Date "2024.04.16"]
[Round "9"]
[White "emeli_chess"]
[Black "Dinosaurio_1975"]
[Result "0-1"]
[WhiteElo "2460"]
[BlackElo "2587"]
[TimeControl "180+1"]
[EndTime "9:49:26 PDT"]
[Termination "Dinosaurio_1975 won by resignation"]

1. d4 {[%clk 0:03:00.9]} 1... d5 {[%clk 0:02:59.5]} 2. c4 {[%clk 0:03:00.5]}
2... e6 {[%clk 0:03:00]} 3. Nc3 {[%clk 0:03:00.4]} 3... a6 {[%clk 0:02:59.9]} 4.
cxd5 {[%clk 0:02:59.3]} 4... exd5 {[%clk 0:03:00.8]} 5. Nf3 {[%clk 0:02:58.7]}
5... Nf6 {[%clk 0:02:59.6]} 6. Bg5 {[%clk 0:02:58.4]} 6... Be6 {[%clk
0:02:59.5]} 7. e3 {[%clk 0:02:58.4]} 7... Nbd7 {[%clk 0:03:00]} 8. Bd3 {[%clk
0:02:58.2]} 8... Bd6 {[%clk 0:03:00.1]} 9. h3 {[%clk 0:02:55.3]} 9... c6 {[%clk
0:02:58.2]} 10. O-O {[%clk 0:02:54.1]} 10... O-O {[%clk 0:02:52.8]} 11. Rb1
{[%clk 0:02:50.6]} 11... Qc7 {[%clk 0:02:52.1]} 12. b4 {[%clk 0:02:41.4]} 12...
h6 {[%clk 0:02:51.8]} 13. Bxf6 {[%clk 0:02:41.1]} 13... Nxf6 {[%clk 0:02:51.5]}
14. a4 {[%clk 0:02:38.3]} 14... b5 {[%clk 0:02:50.7]} 15. a5 {[%clk 0:02:36.7]}
15... Qe7 {[%clk 0:02:50.2]} 16. Qb3 {[%clk 0:02:32.3]} 16... g5 {[%clk
0:02:41.6]} 17. Ne5 {[%clk 0:02:25.1]} 17... Bxe5 {[%clk 0:02:29.7]} 18. dxe5
{[%clk 0:02:24.6]} 18... Nd7 {[%clk 0:02:30.3]} 19. Ne2 {[%clk 0:02:07.9]} 19...
Nxe5 {[%clk 0:02:28.2]} 20. f4 {[%clk 0:02:05.7]} 20... Nxd3 {[%clk 0:02:24.6]}
21. Qxd3 {[%clk 0:02:05.3]} 21... c5 {[%clk 0:01:47.8]} 22. f5 {[%clk
0:01:52.2]} 22... Bd7 {[%clk 0:01:42.3]} 23. f6 {[%clk 0:01:51.7]} 23... Qd6
{[%clk 0:01:42.1]} 24. bxc5 {[%clk 0:01:45.7]} 24... Qxc5 {[%clk 0:01:40.6]} 25.
Nd4 {[%clk 0:01:46]} 25... Rfe8 {[%clk 0:01:31.9]} 26. Rbc1 {[%clk 0:01:40.1]}
26... Qd6 {[%clk 0:01:31.2]} 27. Rf3 {[%clk 0:01:32.8]} 27... Rac8 {[%clk
0:01:24.8]} 28. Rcf1 {[%clk 0:01:31.5]} 28... b4 {[%clk 0:01:22.9]} 29. h4
{[%clk 0:01:18.1]} 29... Rc3 {[%clk 0:01:20.8]} 30. Qd2 {[%clk 0:01:01.6]} 30...
g4 {[%clk 0:00:35.4]} 31. e4 {[%clk 0:00:38.3]} 31... gxf3 {[%clk 0:00:17.3]}
32. Qxh6 {[%clk 0:00:37.2]} 32... Qg3 {[%clk 0:00:17.4]} 33. Nxf3 {[%clk
0:00:33]} 33... Qg6 {[%clk 0:00:16.8]} 34. Qf4 {[%clk 0:00:32]} 34... Rxe4
{[%clk 0:00:15.8]} 35. Qd6 {[%clk 0:00:27.4]} 35... Bh3 {[%clk 0:00:06.6]} 36.
Ng5 {[%clk 0:00:26.1]} 36... Re8 {[%clk 0:00:03.8]} 37. gxh3 {[%clk 0:00:21.7]}
37... Rc2 {[%clk 0:00:04.2]} 38. Rf2 {[%clk 0:00:17]} 38... Rc1+ {[%clk
0:00:03.7]} 39. Kg2 {[%clk 0:00:17.3]} 39... Rc2 {[%clk 0:00:03]} 40. Kg3 {[%clk
0:00:15.5]} 40... Rc3+ {[%clk 0:00:02.5]} 41. Rf3 {[%clk 0:00:15.3]} 41... Rxf3+
{[%clk 0:00:02.4]} 42. Kxf3 {[%clk 0:00:15.7]} 42... Qf5+ {[%clk 0:00:02.6]} 43.
Kg3 {[%clk 0:00:15.7]} 43... Qe5+ {[%clk 0:00:03.2]} 44. Qxe5 {[%clk 0:00:15.1]}
44... Rxe5 {[%clk 0:00:04.1]} 45. Kf4 {[%clk 0:00:15]} 45... Re1 {[%clk
0:00:04.3]} 46. Nf3 {[%clk 0:00:13.4]} 46... Rf1 {[%clk 0:00:04.8]} 47. Ke3
{[%clk 0:00:13.5]} 47... Rxf3+ {[%clk 0:00:05.7]} 48. Kxf3 {[%clk 0:00:13.6]}
48... b3 {[%clk 0:00:06.6]} 0-1

[Event "Early-Titled-Tuesday-Blitz-April-16-2024"]
[Site "Chess.com"]
[Date "2024.04.16"]
[Round "9"]
[White "AmanteDeMoi"]
[Black "IM_ArthurDW08"]
[Result "0-1"]
[WhiteElo "2597"]
[BlackElo "2755"]
[TimeControl "180+1"]
[EndTime "9:49:28 PDT"]
[Termination "IM_ArthurDW08 won on time"]

1. Nf3 {[%clk 0:02:49.6]} 1... e6 {[%clk 0:02:55.9]} 2. e3 {[%clk 0:02:48.3]}
2... b6 {[%clk 0:02:52.4]} 3. b3 {[%clk 0:02:48]} 3... Bb7 {[%clk 0:02:52.7]} 4.
Bb2 {[%clk 0:02:45.7]} 4... Nf6 {[%clk 0:02:52.6]} 5. Be2 {[%clk 0:02:44.4]}
5... Be7 {[%clk 0:02:52.7]} 6. O-O {[%clk 0:02:37.8]} 6... O-O {[%clk 0:02:53]}
7. c4 {[%clk 0:02:20.4]} 7... d5 {[%clk 0:02:51.4]} 8. cxd5 {[%clk 0:02:19.4]}
8... exd5 {[%clk 0:02:49.2]} 9. d3 {[%clk 0:02:18.7]} 9... Nbd7 {[%clk
0:02:47.9]} 10. Nbd2 {[%clk 0:02:16.3]} 10... Re8 {[%clk 0:02:47.3]} 11. Rc1
{[%clk 0:02:07.5]} 11... c5 {[%clk 0:02:40.8]} 12. Re1 {[%clk 0:01:46.4]} 12...
Bd6 {[%clk 0:02:33.7]} 13. h3 {[%clk 0:01:31.9]} 13... Rc8 {[%clk 0:02:27.8]}
14. Qc2 {[%clk 0:01:31.1]} 14... b5 {[%clk 0:02:18.5]} 15. Qb1 {[%clk
0:01:30.8]} 15... a6 {[%clk 0:02:15.5]} 16. Qa1 {[%clk 0:01:30.2]} 16... Qc7
{[%clk 0:01:27.1]} 17. Bf1 {[%clk 0:01:29.3]} 17... h6 {[%clk 0:01:22]} 18. e4
{[%clk 0:01:26.8]} 18... dxe4 {[%clk 0:01:09.2]} 19. dxe4 {[%clk 0:01:26.4]}
19... Ne5 {[%clk 0:01:08.8]} 20. Nxe5 {[%clk 0:01:19.1]} 20... Bxe5 {[%clk
0:01:09.7]} 21. Bxe5 {[%clk 0:01:17.3]} 21... Rxe5 {[%clk 0:01:07.7]} 22. f4
{[%clk 0:01:13.9]} 22... Ree8 {[%clk 0:01:02.8]} 23. e5 {[%clk 0:01:13.5]} 23...
Nh5 {[%clk 0:01:00.5]} 24. f5 {[%clk 0:01:06.2]} 24... Rcd8 {[%clk 0:00:54.3]}
25. Qc3 {[%clk 0:00:54.2]} 25... b4 {[%clk 0:00:50.8]} 26. Qe3 {[%clk
0:00:52.7]} 26... Qd7 {[%clk 0:00:32.9]} 27. Nc4 {[%clk 0:00:42.1]} 27... Qxf5
{[%clk 0:00:30.3]} 28. g4 {[%clk 0:00:41.2]} 28... Qg6 {[%clk 0:00:24.3]} 29.
Bg2 {[%clk 0:00:25.9]} 29... Bxg2 {[%clk 0:00:20.7]} 30. gxh5 {[%clk 0:00:26]}
30... Qc6 {[%clk 0:00:17.8]} 31. Nd6 {[%clk 0:00:20.1]} 31... Rxd6 {[%clk
0:00:17.7]} 32. Rxc5 {[%clk 0:00:20.7]} 32... Qa8 {[%clk 0:00:17.8]} 33. exd6
{[%clk 0:00:20.3]} 33... Rxe3 {[%clk 0:00:17.8]} 34. Rxe3 {[%clk 0:00:21.1]}
34... Bc6 {[%clk 0:00:13.5]} 35. Re7 {[%clk 0:00:12.7]} 35... Kh7 {[%clk
0:00:13.2]} 36. Rxf7 {[%clk 0:00:08.9]} 36... Bh1 {[%clk 0:00:08.8]} 37. Rc2
{[%clk 0:00:03.7]} 37... Qe4 {[%clk 0:00:06.1]} 38. Rfc7 {[%clk 0:00:02.9]}
38... Bf3 {[%clk 0:00:04.8]} 39. d7 {[%clk 0:00:02.5]} 39... Qd4+ {[%clk
0:00:05.3]} 40. Kf1 {[%clk 0:00:01.7]} 40... Bxh5 {[%clk 0:00:05.1]} 0-1

[Event "Early-Titled-Tuesday-Blitz-April-16-2024"]
[Site "Chess.com"]
[Date "2024.04.16"]
[Round "9"]
[White "NewYearGirl"]
[Black "Sanyura"]
[Result "0-1"]
[WhiteElo "2381"]
[BlackElo "2602"]
[TimeControl "180+1"]
[EndTime "9:49:30 PDT"]
[Termination "Sanyura won by checkmate"]

1. e4 {[%clk 0:03:00.9]} 1... c5 {[%clk 0:02:26.1]} 2. Nf3 {[%clk 0:03:00.9]}
2... e6 {[%clk 0:02:26]} 3. d4 {[%clk 0:03:01.1]} 3... cxd4 {[%clk 0:02:26.4]}
4. Nxd4 {[%clk 0:03:02]} 4... Nf6 {[%clk 0:02:26.6]} 5. Nc3 {[%clk 0:03:01.1]}
5... Nc6 {[%clk 0:02:27.1]} 6. Ndb5 {[%clk 0:03:00.9]} 6... Bc5 {[%clk
0:02:26.9]} 7. Nd6+ {[%clk 0:02:59]} 7... Ke7 {[%clk 0:02:27]} 8. Bf4 {[%clk
0:02:59.5]} 8... e5 {[%clk 0:02:26.6]} 9. Nf5+ {[%clk 0:02:58.3]} 9... Kf8
{[%clk 0:02:27.2]} 10. Bg5 {[%clk 0:02:58.7]} 10... h6 {[%clk 0:02:27.3]} 11.
Bxf6 {[%clk 0:02:55.6]} 11... Qxf6 {[%clk 0:02:28.2]} 12. Nd5 {[%clk 0:02:54.5]}
12... Qd8 {[%clk 0:02:28.1]} 13. Bc4 {[%clk 0:02:46.5]} 13... d6 {[%clk
0:02:28]} 14. Nfe3 {[%clk 0:02:41.1]} 14... Be6 {[%clk 0:02:24]} 15. O-O {[%clk
0:02:40.6]} 15... Rc8 {[%clk 0:02:23.1]} 16. c3 {[%clk 0:02:34.9]} 16... a6
{[%clk 0:02:22.9]} 17. b4 {[%clk 0:02:33.5]} 17... Ba7 {[%clk 0:02:22.6]} 18. a4
{[%clk 0:02:32.5]} 18... g6 {[%clk 0:02:19.3]} 19. Bb3 {[%clk 0:02:26.5]} 19...
Kg7 {[%clk 0:02:17.4]} 20. a5 {[%clk 0:02:18.5]} 20... Rf8 {[%clk 0:02:11.4]}
21. Kh1 {[%clk 0:01:58]} 21... Qh4 {[%clk 0:01:50.6]} 22. Nb6 {[%clk 0:01:29.7]}
22... Bxb3 {[%clk 0:01:35.9]} 23. Qxb3 {[%clk 0:01:30.6]} 23... Bxb6 {[%clk
0:01:36]} 24. axb6 {[%clk 0:01:31.3]} 24... Qxe4 {[%clk 0:01:35.7]} 25. Nd5
{[%clk 0:01:30.1]} 25... Nb8 {[%clk 0:01:00.2]} 26. f4 {[%clk 0:01:23.2]} 26...
Qc4 {[%clk 0:00:50.7]} 27. Qd1 {[%clk 0:01:23.1]} 27... f5 {[%clk 0:00:44.2]}
28. Rf3 {[%clk 0:01:12.7]} 28... Nc6 {[%clk 0:00:19.9]} 29. h4 {[%clk
0:01:10.2]} 29... h5 {[%clk 0:00:13.7]} 30. Rg3 {[%clk 0:01:07.3]} 30... exf4
{[%clk 0:00:11.3]} 31. Rg5 {[%clk 0:01:00.5]} 31... f3 {[%clk 0:00:11.2]} 32. g3
{[%clk 0:00:50.1]} 32... Ne5 {[%clk 0:00:11.3]} 33. Ne7 {[%clk 0:00:48.5]} 33...
f2 {[%clk 0:00:09.6]} 34. Kg2 {[%clk 0:00:39.1]} 34... Qe4+ {[%clk 0:00:08.8]}
35. Kxf2 {[%clk 0:00:37.5]} 35... Rxc3 {[%clk 0:00:09.2]} 36. Ra2 {[%clk
0:00:33]} 36... Rf3+ {[%clk 0:00:08.1]} 37. Kg1 {[%clk 0:00:32.7]} 37... Re3
{[%clk 0:00:06.3]} 38. Ra1 {[%clk 0:00:08]} 38... Nf3+ {[%clk 0:00:06.1]} 39.
Kf2 {[%clk 0:00:07.3]} 39... Nxg5 {[%clk 0:00:06.6]} 40. hxg5 {[%clk 0:00:07.4]}
40... Qxe7 {[%clk 0:00:07]} 41. Qd4+ {[%clk 0:00:06.9]} 41... Qe5 {[%clk
0:00:07.5]} 42. Qxe3 {[%clk 0:00:07.3]} 42... Qxa1 {[%clk 0:00:06.6]} 43. Qe7+
{[%clk 0:00:07.5]} 43... Rf7 {[%clk 0:00:07.2]} 44. Qxd6 {[%clk 0:00:07.9]}
44... Qc3 {[%clk 0:00:06]} 45. Kg1 {[%clk 0:00:08.6]} 45... Qc6 {[%clk
0:00:05.9]} 46. Qd4+ {[%clk 0:00:08.5]} 46... Kh7 {[%clk 0:00:06.5]} 47. Kh2
{[%clk 0:00:08.5]} 47... Rd7 {[%clk 0:00:06.7]} 48. Qe5 {[%clk 0:00:08.2]} 48...
Rd2+ {[%clk 0:00:05.8]} 49. Kh3 {[%clk 0:00:08.3]} 49... Qh1# {[%clk 0:00:06]}
0-1

[Event "Early-Titled-Tuesday-Blitz-April-16-2024"]
[Site "Chess.com"]
[Date "2024.04.16"]
[Round "9"]
[White "FaustinoOro"]
[Black "Tagir45"]
[Result "1-0"]
[WhiteElo "2930"]
[BlackElo "2636"]
[TimeControl "180+1"]
[EndTime "9:49:31 PDT"]
[Termination "FaustinoOro won on time"]

1. e4 {[%clk 0:03:00.9]} 1... c5 {[%clk 0:02:57]} 2. Nf3 {[%clk 0:03:00.5]} 2...
d6 {[%clk 0:02:55.8]} 3. Bb5+ {[%clk 0:03:00.4]} 3... Nd7 {[%clk 0:02:54.3]} 4.
O-O {[%clk 0:03:00.5]} 4... a6 {[%clk 0:02:53.6]} 5. Bd3 {[%clk 0:02:59.7]} 5...
b5 {[%clk 0:02:50.4]} 6. c3 {[%clk 0:02:53.9]} 6... Ngf6 {[%clk 0:02:49.2]} 7.
a4 {[%clk 0:02:53.2]} 7... Bb7 {[%clk 0:02:44]} 8. Re1 {[%clk 0:02:52.7]} 8...
c4 {[%clk 0:02:42.1]} 9. Bc2 {[%clk 0:02:52]} 9... e6 {[%clk 0:02:41.5]} 10.
axb5 {[%clk 0:02:51.8]} 10... axb5 {[%clk 0:02:41.2]} 11. Rxa8 {[%clk
0:02:52.1]} 11... Qxa8 {[%clk 0:02:40.8]} 12. Na3 {[%clk 0:02:52.5]} 12... Bxe4
{[%clk 0:02:30.3]} 13. Bxe4 {[%clk 0:02:48.9]} 13... Nxe4 {[%clk 0:02:29.7]} 14.
d3 {[%clk 0:02:47.5]} 14... cxd3 {[%clk 0:02:21.5]} 15. Nxb5 {[%clk 0:02:47.7]}
15... Qb7 {[%clk 0:02:08.2]} 16. Qxd3 {[%clk 0:02:47]} 16... Ndc5 {[%clk
0:02:05.8]} 17. Qe2 {[%clk 0:02:44.8]} 17... Nf6 {[%clk 0:01:54.2]} 18. Bf4
{[%clk 0:02:39.5]} 18... Nce4 {[%clk 0:01:47.2]} 19. Rd1 {[%clk 0:02:27.8]}
19... e5 {[%clk 0:01:36.4]} 20. Bg5 {[%clk 0:02:08.1]} 20... Nd7 {[%clk
0:01:15.5]} 21. Qxe4 {[%clk 0:01:42.1]} 21... Qxb5 {[%clk 0:01:14.7]} 22. Nd4
{[%clk 0:01:39.9]} 22... Qa6 {[%clk 0:00:32.8]} 23. Nc6 {[%clk 0:01:28.4]} 23...
f6 {[%clk 0:00:30.6]} 24. Be3 {[%clk 0:01:25.8]} 24... Be7 {[%clk 0:00:27.8]}
25. Qd5 {[%clk 0:01:24.3]} 25... Qb7 {[%clk 0:00:15]} 26. Nxe7 {[%clk
0:01:20.2]} 26... Qxd5 {[%clk 0:00:11.8]} 27. Nxd5 {[%clk 0:01:21.1]} 27... Kf7
{[%clk 0:00:11.5]} 28. b4 {[%clk 0:01:17.6]} 28... Ra8 {[%clk 0:00:10.4]} 29.
Rb1 {[%clk 0:01:15.4]} 29... Ra2 {[%clk 0:00:09.5]} 30. b5 {[%clk 0:01:12.4]}
30... Ke6 {[%clk 0:00:09.8]} 31. Nc7+ {[%clk 0:01:12.9]} 31... Kf5 {[%clk
0:00:09]} 32. b6 {[%clk 0:01:13.2]} 32... Ke4 {[%clk 0:00:08.8]} 33. b7 {[%clk
0:01:12]} 33... Nb8 {[%clk 0:00:09]} 34. h4 {[%clk 0:01:04]} 34... f5 {[%clk
0:00:08.8]} 35. Nb5 {[%clk 0:01:01.7]} 35... f4 {[%clk 0:00:08.2]} 36. Ba7
{[%clk 0:01:02.4]} 36... Nc6 {[%clk 0:00:07.3]} 37. Nxd6+ {[%clk 0:01:00.5]}
37... Kd3 {[%clk 0:00:04.3]} 38. b8=Q {[%clk 0:00:59.7]} 38... Nxb8 {[%clk
0:00:04.3]} 39. Bxb8 {[%clk 0:01:00.6]} 39... e4 {[%clk 0:00:05]} 40. Rd1+
{[%clk 0:01:00.4]} 40... Ke2 {[%clk 0:00:05.3]} 41. Rd4 {[%clk 0:00:54.6]} 41...
e3 {[%clk 0:00:05.7]} 42. fxe3 {[%clk 0:00:55]} 42... fxe3 {[%clk 0:00:05.9]}
43. Nf5 {[%clk 0:00:55.6]} 43... Ra1+ {[%clk 0:00:05]} 44. Kh2 {[%clk
0:00:55.6]} 44... Ra8 {[%clk 0:00:05.1]} 45. Bf4 {[%clk 0:00:54.6]} 45... Rf8
{[%clk 0:00:04.9]} 46. Nxe3 {[%clk 0:00:54.8]} 46... h6 {[%clk 0:00:05.2]} 47.
Nd5 {[%clk 0:00:54.5]} 47... g5 {[%clk 0:00:04.5]} 48. hxg5 {[%clk 0:00:54.7]}
48... hxg5 {[%clk 0:00:05.4]} 49. Bxg5 {[%clk 0:00:55]} 49... Rh8+ {[%clk
0:00:05.7]} 50. Kg3 {[%clk 0:00:54.6]} 50... Rg8 {[%clk 0:00:05.8]} 51. Nf4+
{[%clk 0:00:54.8]} 51... Ke3 {[%clk 0:00:05.1]} 52. Nh3+ {[%clk 0:00:53.4]}
52... Ke2 {[%clk 0:00:03.7]} 53. Rg4 {[%clk 0:00:53.5]} 53... Rc8 {[%clk
0:00:03.1]} 54. Bf6 {[%clk 0:00:53.4]} 54... Re8 {[%clk 0:00:01.7]} 55. Bd4
{[%clk 0:00:53.1]} 55... Kf1 {[%clk 0:00:01.9]} 56. Rf4+ {[%clk 0:00:52]} 56...
Ke1 {[%clk 0:00:02.3]} 57. Ng5 {[%clk 0:00:51.8]} 57... Rg8 {[%clk 0:00:02.4]}
58. Kg4 {[%clk 0:00:52.3]} 58... Ke2 {[%clk 0:00:02.1]} 59. Rf7 {[%clk
0:00:51.2]} 59... Re8 {[%clk 0:00:01.5]} 60. Bf6 {[%clk 0:00:48]} 60... Rg8
{[%clk 0:00:01.8]} 61. c4 {[%clk 0:00:48]} 61... Rc8 {[%clk 0:00:02.1]} 62. Kf4
{[%clk 0:00:45]} 62... Rxc4+ {[%clk 0:00:01.3]} 63. Ne4 {[%clk 0:00:45.7]} 1-0

[Event "Early-Titled-Tuesday-Blitz-April-16-2024"]
[Site "Chess.com"]
[Date "2024.04.16"]
[Round "9"]
[White "BallottiLuca"]
[Black "Likvidator228"]
[Result "1-0"]
[WhiteElo "2383"]
[BlackElo "2518"]
[TimeControl "180+1"]
[EndTime "9:49:31 PDT"]
[Termination "BallottiLuca won by checkmate"]

1. d4 {[%clk 0:03:00.9]} 1... Nf6 {[%clk 0:02:58.3]} 2. Bg5 {[%clk 0:03:00.8]}
2... Ne4 {[%clk 0:02:58.2]} 3. Bf4 {[%clk 0:03:00.1]} 3... c5 {[%clk 0:02:58.2]}
4. f3 {[%clk 0:02:56.6]} 4... Nf6 {[%clk 0:02:57.9]} 5. dxc5 {[%clk 0:02:55]}
5... Qa5+ {[%clk 0:02:57.7]} 6. Nc3 {[%clk 0:02:54.3]} 6... Qxc5 {[%clk
0:02:58]} 7. e4 {[%clk 0:02:52.2]} 7... d6 {[%clk 0:02:54.3]} 8. Qd2 {[%clk
0:02:52.5]} 8... a6 {[%clk 0:02:50.9]} 9. O-O-O {[%clk 0:02:51.4]} 9... Nc6
{[%clk 0:02:49.4]} 10. g4 {[%clk 0:02:38.2]} 10... h6 {[%clk 0:02:46.3]} 11. h4
{[%clk 0:02:33.4]} 11... Be6 {[%clk 0:02:45.8]} 12. Kb1 {[%clk 0:02:31.7]} 12...
g6 {[%clk 0:02:39.4]} 13. Nd5 {[%clk 0:02:20.6]} 13... Bxd5 {[%clk 0:02:33.7]}
14. exd5 {[%clk 0:02:21.5]} 14... Ne5 {[%clk 0:02:25.8]} 15. Bxe5 {[%clk
0:02:05.1]} 15... dxe5 {[%clk 0:02:26]} 16. h5 {[%clk 0:01:51.2]} 16... gxh5
{[%clk 0:02:19.9]} 17. gxh5 {[%clk 0:01:50.8]} 17... O-O-O {[%clk 0:02:20.1]}
18. c4 {[%clk 0:01:46.4]} 18... Kb8 {[%clk 0:02:16.5]} 19. Ne2 {[%clk
0:01:44.3]} 19... e6 {[%clk 0:02:14]} 20. Nc3 {[%clk 0:01:44.2]} 20... exd5
{[%clk 0:02:14.2]} 21. cxd5 {[%clk 0:01:41]} 21... Bd6 {[%clk 0:02:05.8]} 22.
Rh4 {[%clk 0:01:28.7]} 22... Rc8 {[%clk 0:01:59.1]} 23. Ne4 {[%clk 0:01:23.1]}
23... Nxe4 {[%clk 0:01:59]} 24. fxe4 {[%clk 0:01:24]} 24... Be7 {[%clk
0:01:57.3]} 25. Rh3 {[%clk 0:01:23.1]} 25... Bg5 {[%clk 0:01:57.3]} 26. Qc3
{[%clk 0:01:09.6]} 26... Qd6 {[%clk 0:01:47.1]} 27. Qb3 {[%clk 0:01:05.4]} 27...
Rc5 {[%clk 0:01:45.8]} 28. Rc3 {[%clk 0:01:03.2]} 28... Rhc8 {[%clk 0:01:46.4]}
29. Rxc5 {[%clk 0:01:02.6]} 29... Qxc5 {[%clk 0:01:44.8]} 30. a3 {[%clk
0:01:02]} 30... Ka7 {[%clk 0:01:44.7]} 31. Bd3 {[%clk 0:01:01.5]} 31... Be3
{[%clk 0:01:41.2]} 32. Ka2 {[%clk 0:01:01.4]} 32... Bd4 {[%clk 0:01:41.4]} 33.
Rf1 {[%clk 0:00:56.2]} 33... Qe7 {[%clk 0:01:37.6]} 34. d6 {[%clk 0:00:47.3]}
34... Qxd6 {[%clk 0:01:35.4]} 35. Rxf7 {[%clk 0:00:47.4]} 35... Rc7 {[%clk
0:01:28.1]} 36. Rxc7 {[%clk 0:00:45.6]} 36... Qxc7 {[%clk 0:01:28.3]} 37. Qc4
{[%clk 0:00:44.4]} 37... Qb6 {[%clk 0:01:25.5]} 38. Qb3 {[%clk 0:00:42.9]} 38...
Qf6 {[%clk 0:01:23.1]} 39. Bc4 {[%clk 0:00:35.6]} 39... b5 {[%clk 0:01:01.7]}
40. Bd5 {[%clk 0:00:35.5]} 40... Qf2 {[%clk 0:01:00]} 41. Qb4 {[%clk 0:00:33.4]}
41... Qf6 {[%clk 0:00:54.3]} 42. Qd2 {[%clk 0:00:21.5]} 42... Kb6 {[%clk
0:00:53.6]} 43. Qc2 {[%clk 0:00:19.9]} 43... Bc5 {[%clk 0:00:37.3]} 44. a4
{[%clk 0:00:16.3]} 44... Qf3 {[%clk 0:00:31.2]} 45. axb5 {[%clk 0:00:14.8]}
45... Kxb5 {[%clk 0:00:20]} 46. Qd2 {[%clk 0:00:12.1]} 46... a5 {[%clk
0:00:16.3]} 47. Qc2 {[%clk 0:00:10.8]} 47... Qf2 {[%clk 0:00:10.6]} 48. Qb3+
{[%clk 0:00:09]} 48... Bb4 {[%clk 0:00:10.7]} 49. Qc4+ {[%clk 0:00:07.6]} 49...
Kb6 {[%clk 0:00:09.1]} 50. Qc6+ {[%clk 0:00:07.8]} 50... Ka7 {[%clk 0:00:09.3]}
51. Qb7# {[%clk 0:00:08.5]} 1-0